[Event "Titled Tuesday Blitz August 16 Early 2022"]
[White "Yurasova, Daria"]
[Black "Fus, Jakub"]
[WhiteFideId "34146919"]
[BlackFideId "1193023"]
[WhiteElo "2021"]
[BlackElo "2220"]
[Result "0-1"]
[Round "01"]
[TimeControl "180+2"]
[Date "2022.08.18"]
[WhiteClock "0:00:00"]
[BlackClock "0:00:00"]

1. d4 {[%clk 0:00:00]}  Nf6 {[%clk 0:00:00]} 2. Bg5 {[%clk 0:00:00]}  d5 {[%clk 0:00:00]} 3. Bxf6 {[%clk 0:00:00]}  gxf6 {[%clk 0:00:00]} 4. e3 {[%clk 0:00:00]}  e6 {[%clk 0:00:00]} 5. Nf3 {[%clk 0:00:00]}  c5 {[%clk 0:00:00]} 6. c3 {[%clk 0:00:00]}  Nc6 {[%clk 0:00:00]} 7. Nbd2 {[%clk 0:00:00]}  Qb6 {[%clk 0:00:00]} 8. Qb3 {[%clk 0:00:00]}  f5 {[%clk 0:00:00]} 9. Be2 {[%clk 0:00:00]}  c4 {[%clk 0:00:00]} 10. Qxb6 {[%clk 0:00:00]}  axb6 {[%clk 0:00:00]} 11. O-O {[%clk 0:00:00]}  b5 {[%clk 0:00:00]} 12. b3 {[%clk 0:00:00]}  Ra3 {[%clk 0:00:00]} 13. Nb1 {[%clk 0:00:00]}  Ra7 {[%clk 0:00:00]} 14. Nbd2 {[%clk 0:00:00]}  Ba3 {[%clk 0:00:00]} 15. Rab1 {[%clk 0:00:00]}  b4 {[%clk 0:00:00]} 16. bxc4 {[%clk 0:00:00]}  bxc3 {[%clk 0:00:00]} 17. Nb3 {[%clk 0:00:00]}  c2 {[%clk 0:00:00]} 18. Rbe1 {[%clk 0:00:00]}  Nb4 {[%clk 0:00:00]} 19. cxd5 {[%clk 0:00:00]}  Ke7 {[%clk 0:00:00]} 20. Ne5 {[%clk 0:00:00]}  Nxa2 {[%clk 0:00:00]} 21. Ra1 {[%clk 0:00:00]}  Bb2 {[%clk 0:00:00]} 22. d6+ {[%clk 0:00:00]}  Kf6 {[%clk 0:00:00]} 23. d7 {[%clk 0:00:00]}  Bxa1 {[%clk 0:00:00]} 24. Rxa1 {[%clk 0:00:00]}  Rd8 {[%clk 0:00:00]} 25. Bb5 {[%clk 0:00:00]}  Ke7 {[%clk 0:00:00]} 26. Nc1 {[%clk 0:00:00]}  Nxc1 {[%clk 0:00:00]} 27. Rxa7 {[%clk 0:00:00]}  Ne2+ {[%clk 0:00:00]} 28. Bxe2 {[%clk 0:00:00]}  c1=Q+ {[%clk 0:00:00]} 29. Bf1 {[%clk 0:00:00]} 0-1


[Site "https://www.chess.com"]

[Event "Titled Tuesday Blitz August 16 Early 2022"]
[White "Zenin, Dmitry"]
[Black "Perera Alfonso, Rene Humberto"]
[WhiteFideId "4127897"]
[BlackFideId "3514722"]
[WhiteElo "2215"]
[BlackElo "2313"]
[Result "0-1"]
[Round "01"]
[TimeControl "180+2"]
[Date "2022.08.18"]
[WhiteClock "0:00:00"]
[BlackClock "0:00:00"]

1. c4 {[%clk 0:00:00]}  e5 {[%clk 0:00:00]} 2. Nc3 {[%clk 0:00:00]}  Nc6 {[%clk 0:00:00]} 3. g3 {[%clk 0:00:00]}  f5 {[%clk 0:00:00]} 4. Bg2 {[%clk 0:00:00]}  Nf6 {[%clk 0:00:00]} 5. d3 {[%clk 0:00:00]}  Bc5 {[%clk 0:00:00]} 6. e4 {[%clk 0:00:00]}  d6 {[%clk 0:00:00]} 7. Nge2 {[%clk 0:00:00]}  O-O {[%clk 0:00:00]} 8. O-O {[%clk 0:00:00]}  fxe4 {[%clk 0:00:00]} 9. Nxe4 {[%clk 0:00:00]}  Nxe4 {[%clk 0:00:00]} 10. dxe4 {[%clk 0:00:00]}  Be6 {[%clk 0:00:00]} 11. b3 {[%clk 0:00:00]}  Qe8 {[%clk 0:00:00]} 12. Be3 {[%clk 0:00:00]}  Bxe3 {[%clk 0:00:00]} 13. fxe3 {[%clk 0:00:00]}  Qh5 {[%clk 0:00:00]} 14. Nc3 {[%clk 0:00:00]}  Bg4 {[%clk 0:00:00]} 15. Qd2 {[%clk 0:00:00]}  h6 {[%clk 0:00:00]} 16. Nd5 {[%clk 0:00:00]}  Rac8 {[%clk 0:00:00]} 17. Rxf8+ {[%clk 0:00:00]}  Kxf8 {[%clk 0:00:00]} 18. Rf1+ {[%clk 0:00:00]}  Kg8 {[%clk 0:00:00]} 19. Qf2 {[%clk 0:00:00]}  Be6 {[%clk 0:00:00]} 20. h4 {[%clk 0:00:00]}  Bxd5 {[%clk 0:00:00]} 21. exd5 {[%clk 0:00:00]}  Nb4 {[%clk 0:00:00]} 22. Bh3 {[%clk 0:00:00]}  Rd8 {[%clk 0:00:00]} 23. Bf5 {[%clk 0:00:00]}  Kh8 {[%clk 0:00:00]} 24. a3 {[%clk 0:00:00]}  Na6 {[%clk 0:00:00]} 25. b4 {[%clk 0:00:00]}  Rf8 {[%clk 0:00:00]} 26. Qc2 {[%clk 0:00:00]}  Nb8 {[%clk 0:00:00]} 27. Kg2 {[%clk 0:00:00]}  Qe8 {[%clk 0:00:00]} 28. Qe4 {[%clk 0:00:00]}  Qd8 {[%clk 0:00:00]} 29. Qg4 {[%clk 0:00:00]}  Rf6 {[%clk 0:00:00]} 30. Rf3 {[%clk 0:00:00]}  a5 {[%clk 0:00:00]} 31. Bc8 {[%clk 0:00:00]}  Rxf3 {[%clk 0:00:00]} 32. Kxf3 {[%clk 0:00:00]}  axb4 {[%clk 0:00:00]} 33. axb4 {[%clk 0:00:00]}  Na6 {[%clk 0:00:00]} 34. b5 {[%clk 0:00:00]}  Nc5 {[%clk 0:00:00]} 35. Bf5 {[%clk 0:00:00]}  Qf6 {[%clk 0:00:00]} 36. Qh5 {[%clk 0:00:00]}  e4+ {[%clk 0:00:00]} 37. Kg2 {[%clk 0:00:00]}  Qf8 {[%clk 0:00:00]} 38. Qg6 {[%clk 0:00:00]}  Kg8 {[%clk 0:00:00]} 39. Bxe4 {[%clk 0:00:00]}  Qf7 {[%clk 0:00:00]} 40. Qh7+ {[%clk 0:00:00]}  Kf8 {[%clk 0:00:00]} 41. Bf5 {[%clk 0:00:00]}  b6 {[%clk 0:00:00]} 42. g4 {[%clk 0:00:00]}  Qf6 {[%clk 0:00:00]} 43. Qh8+ {[%clk 0:00:00]}  Kf7 {[%clk 0:00:00]} 44. Qc8 {[%clk 0:00:00]}  Qe7 {[%clk 0:00:00]} 45. Kf3 {[%clk 0:00:00]}  Kf6 {[%clk 0:00:00]} 46. h5 {[%clk 0:00:00]}  Kg5 {[%clk 0:00:00]} 47. Qa8 {[%clk 0:00:00]}  Kh4 {[%clk 0:00:00]} 48. Qa1 {[%clk 0:00:00]}  Kg5 {[%clk 0:00:00]} 49. Qc1 {[%clk 0:00:00]}  Qe5 {[%clk 0:00:00]} 50. e4+ {[%clk 0:00:00]}  Kf6 {[%clk 0:00:00]} 51. Qe3 {[%clk 0:00:00]}  Qb2 {[%clk 0:00:00]} 52. Kg3 {[%clk 0:00:00]}  Qb3 {[%clk 0:00:00]} 53. Qxb3 {[%clk 0:00:00]}  Nxb3 {[%clk 0:00:00]} 54. Kf4 {[%clk 0:00:00]}  Nd4 {[%clk 0:00:00]} 55. Ke3 {[%clk 0:00:00]}  Nc2+ {[%clk 0:00:00]} 56. Kd3 {[%clk 0:00:00]}  Na3 {[%clk 0:00:00]} 57. Bd7 {[%clk 0:00:00]}  Ke5 {[%clk 0:00:00]} 58. Bf5 {[%clk 0:00:00]}  Nb1 {[%clk 0:00:00]} 59. Bg6 {[%clk 0:00:00]}  Na3 {[%clk 0:00:00]} 60. Bf5 {[%clk 0:00:00]}  Kf4 {[%clk 0:00:00]} 61. Bg6 {[%clk 0:00:00]}  Kxg4 {[%clk 0:00:00]} 62. e5 {[%clk 0:00:00]}  dxe5 {[%clk 0:00:00]} 63. Kc3 {[%clk 0:00:00]}  Kf4 {[%clk 0:00:00]} 64. Kb3 {[%clk 0:00:00]}  Nb1 {[%clk 0:00:00]} 65. Bxb1 {[%clk 0:00:00]}  e4 {[%clk 0:00:00]} 66. Kc3 {[%clk 0:00:00]}  e3 {[%clk 0:00:00]} 67. Kd3 {[%clk 0:00:00]}  Kf3 {[%clk 0:00:00]} 68. Kd4 {[%clk 0:00:00]}  e2 {[%clk 0:00:00]} 0-1


[Site "https://www.chess.com"]

[Event "Titled Tuesday Blitz August 16 Early 2022"]
[White "Zherebtsova, Alexandra"]
[Black "Weetik, Vjacheslav"]
[WhiteFideId "24129518"]
[BlackFideId "4153472"]
[WhiteElo "2025"]
[BlackElo "2469"]
[Result "0-1"]
[Round "01"]
[TimeControl "180+2"]
[Date "2022.08.18"]
[WhiteClock "0:00:00"]
[BlackClock "0:00:00"]

1. d4 {[%clk 0:00:00]}  d5 {[%clk 0:00:00]} 2. Nf3 {[%clk 0:00:00]}  Nf6 {[%clk 0:00:00]} 3. c4 {[%clk 0:00:00]}  c6 {[%clk 0:00:00]} 4. Nbd2 {[%clk 0:00:00]}  Bf5 {[%clk 0:00:00]} 5. Nh4 {[%clk 0:00:00]}  Be6 {[%clk 0:00:00]} 6. e3 {[%clk 0:00:00]}  g6 {[%clk 0:00:00]} 7. Bd3 {[%clk 0:00:00]}  Bg7 {[%clk 0:00:00]} 8. O-O {[%clk 0:00:00]}  O-O {[%clk 0:00:00]} 9. f4 {[%clk 0:00:00]}  c5 {[%clk 0:00:00]} 10. f5 {[%clk 0:00:00]}  Bc8 {[%clk 0:00:00]} 11. Nb3 {[%clk 0:00:00]}  cxd4 {[%clk 0:00:00]} 12. Nxd4 {[%clk 0:00:00]}  Nc6 {[%clk 0:00:00]} 13. Nxc6 {[%clk 0:00:00]}  bxc6 {[%clk 0:00:00]} 14. Kh1 {[%clk 0:00:00]}  Ne4 {[%clk 0:00:00]} 15. g3 {[%clk 0:00:00]}  Bb7 {[%clk 0:00:00]} 16. Bxe4 {[%clk 0:00:00]}  dxe4 {[%clk 0:00:00]} 17. Qc2 {[%clk 0:00:00]}  Qd3 {[%clk 0:00:00]} 18. Rf2 {[%clk 0:00:00]}  g5 {[%clk 0:00:00]} 19. Ng2 {[%clk 0:00:00]}  Rad8 {[%clk 0:00:00]} 20. h4 {[%clk 0:00:00]}  h6 {[%clk 0:00:00]} 21. Rb1 {[%clk 0:00:00]}  c5 {[%clk 0:00:00]} 22. Kh2 {[%clk 0:00:00]}  Be5 {[%clk 0:00:00]} 23. b3 {[%clk 0:00:00]}  Qd6 {[%clk 0:00:00]} 24. Nf4 {[%clk 0:00:00]}  gxf4 {[%clk 0:00:00]} 25. gxf4 {[%clk 0:00:00]}  Bf6 {[%clk 0:00:00]} 26. Rg2+ {[%clk 0:00:00]}  Kh7 {[%clk 0:00:00]} 27. Bb2 {[%clk 0:00:00]}  Rg8 {[%clk 0:00:00]} 28. Rbg1 {[%clk 0:00:00]}  Qd3 {[%clk 0:00:00]} 29. Qf2 {[%clk 0:00:00]}  Qd6 {[%clk 0:00:00]} 30. Bxf6 {[%clk 0:00:00]}  Qxf6 {[%clk 0:00:00]} 31. Qc2 {[%clk 0:00:00]}  Qxh4# {[%clk 0:00:00]} 0-1


[Site "https://www.chess.com"]

[Event "Titled Tuesday Blitz August 16 Early 2022"]
[White "Adewumi, Tanitoluwa"]
[Black "Matinian, Nikita"]
[WhiteFideId "30966396"]
[BlackFideId "24129100"]
[WhiteElo "2302"]
[BlackElo "2422"]
[Result "0-1"]
[Round "02"]
[TimeControl "180+2"]
[Date "2022.08.18"]
[WhiteClock "0:00:00"]
[BlackClock "0:00:00"]

1. e4 {[%clk 0:00:00]}  c5 {[%clk 0:00:00]} 2. Nf3 {[%clk 0:00:00]}  d6 {[%clk 0:00:00]} 3. Bb5+ {[%clk 0:00:00]}  Nd7 {[%clk 0:00:00]} 4. c3 {[%clk 0:00:00]}  Nf6 {[%clk 0:00:00]} 5. Bd3 {[%clk 0:00:00]}  g6 {[%clk 0:00:00]} 6. Bc2 {[%clk 0:00:00]}  Bg7 {[%clk 0:00:00]} 7. d4 {[%clk 0:00:00]}  Qc7 {[%clk 0:00:00]} 8. O-O {[%clk 0:00:00]}  O-O {[%clk 0:00:00]} 9. Re1 {[%clk 0:00:00]}  e5 {[%clk 0:00:00]} 10. dxe5 {[%clk 0:00:00]}  dxe5 {[%clk 0:00:00]} 11. c4 {[%clk 0:00:00]}  Nb8 {[%clk 0:00:00]} 12. Nc3 {[%clk 0:00:00]}  Nc6 {[%clk 0:00:00]} 13. Bg5 {[%clk 0:00:00]}  Bg4 {[%clk 0:00:00]} 14. h3 {[%clk 0:00:00]}  Bxf3 {[%clk 0:00:00]} 15. Qxf3 {[%clk 0:00:00]}  Nd4 {[%clk 0:00:00]} 16. Qd3 {[%clk 0:00:00]}  a6 {[%clk 0:00:00]} 17. Rad1 {[%clk 0:00:00]}  h6 {[%clk 0:00:00]} 18. Bh4 {[%clk 0:00:00]}  g5 {[%clk 0:00:00]} 19. Bg3 {[%clk 0:00:00]}  Rad8 {[%clk 0:00:00]} 20. Nd5 {[%clk 0:00:00]}  Nxd5 {[%clk 0:00:00]} 21. exd5 {[%clk 0:00:00]}  f5 {[%clk 0:00:00]} 22. b4 {[%clk 0:00:00]}  Rde8 {[%clk 0:00:00]} 23. Ba4 {[%clk 0:00:00]}  Re7 {[%clk 0:00:00]} 24. Qa3 {[%clk 0:00:00]}  b6 {[%clk 0:00:00]} 25. bxc5 {[%clk 0:00:00]}  bxc5 {[%clk 0:00:00]} 26. Rxd4 {[%clk 0:00:00]}  cxd4 {[%clk 0:00:00]} 27. d6 {[%clk 0:00:00]}  Qa5 {[%clk 0:00:00]} 28. dxe7 {[%clk 0:00:00]}  Qxe1+ {[%clk 0:00:00]} 29. Kh2 {[%clk 0:00:00]}  f4 {[%clk 0:00:00]} 30. exf8=Q+ {[%clk 0:00:00]}  Bxf8 {[%clk 0:00:00]} 31. Qf3 {[%clk 0:00:00]}  Qb1 {[%clk 0:00:00]} 32. Bc6 {[%clk 0:00:00]}  Qg6 {[%clk 0:00:00]} 33. Bd5+ {[%clk 0:00:00]}  Kg7 {[%clk 0:00:00]} 34. Be4 {[%clk 0:00:00]}  Qf6 {[%clk 0:00:00]} 35. Qg4 {[%clk 0:00:00]}  fxg3+ {[%clk 0:00:00]} 36. fxg3 {[%clk 0:00:00]}  Be7 {[%clk 0:00:00]} 37. a4 {[%clk 0:00:00]}  a5 {[%clk 0:00:00]} 38. Qc8 {[%clk 0:00:00]}  h5 {[%clk 0:00:00]} 39. Qe8 {[%clk 0:00:00]}  h4 {[%clk 0:00:00]} 40. gxh4 {[%clk 0:00:00]}  gxh4 {[%clk 0:00:00]} 41. Kg1 {[%clk 0:00:00]}  Qg5 {[%clk 0:00:00]} 0-1


[Site "https://www.chess.com"]

[Event "Titled Tuesday Blitz August 16 Early 2022"]
[White "Aldokhin, Ivan"]
[Black "Yeletsky, Ivan"]
[WhiteFideId "24115720"]
[BlackFideId "24180327"]
[WhiteElo "2246"]
[BlackElo "2293"]
[Result "0-1"]
[Round "02"]
[TimeControl "180+1"]
[Date "2022.08.16"]
[WhiteClock "0:00:02"]
[BlackClock "0:00:09"]

1. e4 {[%clk 0:03:00]}  c5 {[%clk 0:02:33]} 2. Nf3 {[%clk 0:02:52]}  e6 {[%clk 0:02:32]} 3. d4 {[%clk 0:02:52]}  cxd4 {[%clk 0:02:31]} 4. Nxd4 {[%clk 0:02:53]}  a6 {[%clk 0:02:32]} 5. Nc3 {[%clk 0:02:53]}  Qc7 {[%clk 0:02:31]} 6. Bd3 {[%clk 0:02:53]}  Bc5 {[%clk 0:02:30]} 7. Nb3 {[%clk 0:02:52]}  Be7 {[%clk 0:02:30]} 8. f4 {[%clk 0:02:51]}  d6 {[%clk 0:02:29]} 9. Qf3 {[%clk 0:02:50]}  b5 {[%clk 0:02:26]} 10. g4 {[%clk 0:02:39]}  Bh4+ {[%clk 0:02:20]} 11. Ke2 {[%clk 0:02:38]}  Be7 {[%clk 0:02:21]} 12. g5 {[%clk 0:02:34]}  Bb7 {[%clk 0:02:21]} 13. Be3 {[%clk 0:02:33]}  Nd7 {[%clk 0:02:18]} 14. h4 {[%clk 0:02:20]}  b4 {[%clk 0:02:14]} 15. Nd1 {[%clk 0:02:07]}  f5 {[%clk 0:02:10]} 16. Nd4 {[%clk 0:01:55]}  Nc5 {[%clk 0:02:03]} 17. Nf2 {[%clk 0:01:51]}  O-O-O {[%clk 0:01:59]} 18. Qh3 {[%clk 0:01:41]}  fxe4 {[%clk 0:01:40]} 19. Nxe4 {[%clk 0:01:37]}  Kb8 {[%clk 0:00:59]} 20. Nxc5 {[%clk 0:01:29]}  dxc5 {[%clk 0:00:59]} 21. Nxe6 {[%clk 0:01:28]}  Qc6 {[%clk 0:00:58]} 22. Nxd8 {[%clk 0:01:23]}  Bxd8 {[%clk 0:00:59]} 23. c4 {[%clk 0:01:00]}  Ne7 {[%clk 0:00:57]} 24. Rhf1 {[%clk 0:00:53]}  g6 {[%clk 0:00:45]} 25. f5 {[%clk 0:00:47]}  Nxf5 {[%clk 0:00:45]} 26. Bxf5 {[%clk 0:00:45]}  gxf5 {[%clk 0:00:46]} 27. Qxf5 {[%clk 0:00:45]}  Re8 {[%clk 0:00:45]} 28. Rae1 {[%clk 0:00:31]}  b3 {[%clk 0:00:38]} 29. axb3 {[%clk 0:00:26]}  Ba5 {[%clk 0:00:37]} 30. Rd1 {[%clk 0:00:23]}  Qg2+ {[%clk 0:00:27]} 31. Rf2 {[%clk 0:00:22]}  Qc6 {[%clk 0:00:23]} 32. Qd7 {[%clk 0:00:16]}  Qe4 {[%clk 0:00:19]} 33. Qd3 {[%clk 0:00:10]}  Qg4+ {[%clk 0:00:17]} 34. Kf1 {[%clk 0:00:08]}  Qh3+ {[%clk 0:00:16]} 35. Ke2 {[%clk 0:00:08]}  Qg4+ {[%clk 0:00:17]} 36. Kf1 {[%clk 0:00:08]}  Rxe3 {[%clk 0:00:16]} 37. Qd6+ {[%clk 0:00:01]}  Ka7 {[%clk 0:00:15]} 38. Rd5 {[%clk 0:00:02]}  Qh3+ {[%clk 0:00:13]} 39. Rg2 {[%clk 0:00:01]}  Qf3+ {[%clk 0:00:13]} 40. Kg1 {[%clk 0:00:02]}  Re1+ {[%clk 0:00:07]} 41. Kh2 {[%clk 0:00:02]}  Qf7 {[%clk 0:00:06]} 42. Qxc5+ {[%clk 0:00:02]}  Bb6 {[%clk 0:00:06]} 43. Qd6 {[%clk 0:00:02]}  Bc7 {[%clk 0:00:07]} 44. Rgd2 {[%clk 0:00:02]}  Bxd6+ {[%clk 0:00:07]} 45. Rxd6 {[%clk 0:00:03]}  Qf4+ {[%clk 0:00:08]} 46. Kh3 {[%clk 0:00:02]}  Rh1+ {[%clk 0:00:09]} 0-1


[Site "https://www.chess.com"]

[Event "Titled Tuesday Blitz August 16 Early 2022"]
[White "Atakhan, Abtin"]
[Black "Kuznetsova, Olga"]
[WhiteFideId "22502203"]
[BlackFideId "4191323"]
[WhiteElo "2087"]
[BlackElo "2134"]
[Result "0-1"]
[Round "02"]
[TimeControl "180+2"]
[Date "2022.08.18"]
[WhiteClock "0:00:00"]
[BlackClock "0:00:00"]

1. e4 {[%clk 0:00:00]}  e5 {[%clk 0:00:00]} 2. Nf3 {[%clk 0:00:00]}  Nf6 {[%clk 0:00:00]} 3. Nxe5 {[%clk 0:00:00]}  d6 {[%clk 0:00:00]} 4. Nf3 {[%clk 0:00:00]}  Nxe4 {[%clk 0:00:00]} 5. Nc3 {[%clk 0:00:00]}  Nxc3 {[%clk 0:00:00]} 6. dxc3 {[%clk 0:00:00]}  Be7 {[%clk 0:00:00]} 7. Be3 {[%clk 0:00:00]}  Nc6 {[%clk 0:00:00]} 8. Qd2 {[%clk 0:00:00]}  Bf5 {[%clk 0:00:00]} 9. O-O-O {[%clk 0:00:00]}  Qd7 {[%clk 0:00:00]} 10. Bb5 {[%clk 0:00:00]}  a6 {[%clk 0:00:00]} 11. Ba4 {[%clk 0:00:00]}  b5 {[%clk 0:00:00]} 12. Bb3 {[%clk 0:00:00]}  Be6 {[%clk 0:00:00]} 13. Rhe1 {[%clk 0:00:00]}  O-O {[%clk 0:00:00]} 14. Bd5 {[%clk 0:00:00]}  Bxd5 {[%clk 0:00:00]} 15. Qxd5 {[%clk 0:00:00]}  Bf6 {[%clk 0:00:00]} 16. g4 {[%clk 0:00:00]}  Ne7 {[%clk 0:00:00]} 17. Qh5 {[%clk 0:00:00]}  g6 {[%clk 0:00:00]} 18. Qh6 {[%clk 0:00:00]}  Qxg4 {[%clk 0:00:00]} 19. Ng5 {[%clk 0:00:00]}  Bxg5 {[%clk 0:00:00]} 20. Qxg5 {[%clk 0:00:00]}  Qxg5 {[%clk 0:00:00]} 21. Bxg5 {[%clk 0:00:00]}  Nf5 {[%clk 0:00:00]} 22. Bf6 {[%clk 0:00:00]}  Rfe8 {[%clk 0:00:00]} 23. Kd2 {[%clk 0:00:00]}  Re6 {[%clk 0:00:00]} 24. Bg5 {[%clk 0:00:00]}  Rae8 {[%clk 0:00:00]} 25. Rxe6 {[%clk 0:00:00]}  Rxe6 {[%clk 0:00:00]} 26. Kd3 {[%clk 0:00:00]}  f6 {[%clk 0:00:00]} 27. Bc1 {[%clk 0:00:00]}  Kf7 {[%clk 0:00:00]} 28. b3 {[%clk 0:00:00]}  d5 {[%clk 0:00:00]} 29. Ba3 {[%clk 0:00:00]}  Re4 {[%clk 0:00:00]} 30. Bc5 {[%clk 0:00:00]}  Rh4 {[%clk 0:00:00]} 31. Rh1 {[%clk 0:00:00]}  Rh3+ {[%clk 0:00:00]} 32. Kd2 {[%clk 0:00:00]}  Ke6 {[%clk 0:00:00]} 33. Bb4 {[%clk 0:00:00]}  Kd7 {[%clk 0:00:00]} 34. Ke2 {[%clk 0:00:00]}  Nd6 {[%clk 0:00:00]} 35. f3 {[%clk 0:00:00]}  Nf5 {[%clk 0:00:00]} 36. Kf2 {[%clk 0:00:00]}  Nh4 {[%clk 0:00:00]} 37. f4 {[%clk 0:00:00]}  Rf3+ {[%clk 0:00:00]} 38. Ke2 {[%clk 0:00:00]}  Rxf4 {[%clk 0:00:00]} 39. Bc5 {[%clk 0:00:00]}  Nf5 {[%clk 0:00:00]} 40. Rd1 {[%clk 0:00:00]}  Rh4 {[%clk 0:00:00]} 41. Bg1 {[%clk 0:00:00]}  Ke6 {[%clk 0:00:00]} 42. Kf3 {[%clk 0:00:00]}  Re4 {[%clk 0:00:00]} 43. Bf2 {[%clk 0:00:00]}  g5 {[%clk 0:00:00]} 44. Rd2 {[%clk 0:00:00]}  g4+ {[%clk 0:00:00]} 45. Kg2 {[%clk 0:00:00]}  h5 {[%clk 0:00:00]} 46. Kf1 {[%clk 0:00:00]}  h4 {[%clk 0:00:00]} 47. Bc5 {[%clk 0:00:00]}  g3 {[%clk 0:00:00]} 48. hxg3 {[%clk 0:00:00]}  hxg3 {[%clk 0:00:00]} 49. Kg2 {[%clk 0:00:00]}  Ke5 {[%clk 0:00:00]} 50. Kf3 {[%clk 0:00:00]}  Rf4+ {[%clk 0:00:00]} 51. Kg2 {[%clk 0:00:00]}  Re4 {[%clk 0:00:00]} 52. Kf3 {[%clk 0:00:00]}  c6 {[%clk 0:00:00]} 53. Bb6 {[%clk 0:00:00]}  Ke6 {[%clk 0:00:00]} 54. Bc5 {[%clk 0:00:00]}  Rh4 {[%clk 0:00:00]} 55. Re2+ {[%clk 0:00:00]}  Kf7 {[%clk 0:00:00]} 56. Bg1 {[%clk 0:00:00]}  Rh1 {[%clk 0:00:00]} 57. Kg2 {[%clk 0:00:00]}  Rh8 {[%clk 0:00:00]} 58. Kf3 {[%clk 0:00:00]}  Kg6 {[%clk 0:00:00]} 59. Bc5 {[%clk 0:00:00]}  Rh2 {[%clk 0:00:00]} 60. Rxh2 {[%clk 0:00:00]}  gxh2 {[%clk 0:00:00]} 61. Kg2 {[%clk 0:00:00]}  Kg5 {[%clk 0:00:00]} 62. Kxh2 {[%clk 0:00:00]}  Kg4 {[%clk 0:00:00]} 63. Kg2 {[%clk 0:00:00]}  Nh4+ {[%clk 0:00:00]} 64. Kf2 {[%clk 0:00:00]}  f5 {[%clk 0:00:00]} 65. Be7 {[%clk 0:00:00]}  Ng6 {[%clk 0:00:00]} 66. Bc5 {[%clk 0:00:00]}  f4 {[%clk 0:00:00]} 67. a4 {[%clk 0:00:00]}  Ne5 {[%clk 0:00:00]} 68. a5 {[%clk 0:00:00]}  Nf7 {[%clk 0:00:00]} 69. Bd4 {[%clk 0:00:00]}  Ng5 {[%clk 0:00:00]} 70. Ke2 {[%clk 0:00:00]}  Ne4 {[%clk 0:00:00]} 71. Be5 {[%clk 0:00:00]}  f3+ {[%clk 0:00:00]} 72. Ke3 {[%clk 0:00:00]}  Kf5 {[%clk 0:00:00]} 73. Bd4 {[%clk 0:00:00]}  Kg4 {[%clk 0:00:00]} 74. Be5 {[%clk 0:00:00]}  f2 {[%clk 0:00:00]} 75. Ke2 {[%clk 0:00:00]}  Kh3 {[%clk 0:00:00]} 76. Kf1 {[%clk 0:00:00]}  Kg4 {[%clk 0:00:00]} 77. Kg2 {[%clk 0:00:00]}  Kf5 {[%clk 0:00:00]} 78. Bd4 {[%clk 0:00:00]}  Kf4 {[%clk 0:00:00]} 79. Bxf2 {[%clk 0:00:00]}  Nxc3 {[%clk 0:00:00]} 80. Bb6 {[%clk 0:00:00]}  Nb1 {[%clk 0:00:00]} 81. Kf2 {[%clk 0:00:00]}  Ke4 {[%clk 0:00:00]} 82. Ke2 {[%clk 0:00:00]}  d4 {[%clk 0:00:00]} 83. Bc5 {[%clk 0:00:00]}  Kd5 {[%clk 0:00:00]} 84. Bb6 {[%clk 0:00:00]}  c5 {[%clk 0:00:00]} 85. Kd3 {[%clk 0:00:00]}  Nc3 {[%clk 0:00:00]} 86. b4 {[%clk 0:00:00]}  c4+ {[%clk 0:00:00]} 87. Kd2 {[%clk 0:00:00]}  Ne4+ {[%clk 0:00:00]} 88. Ke2 {[%clk 0:00:00]}  Nd6 {[%clk 0:00:00]} 89. Kd2 {[%clk 0:00:00]}  Nf5 {[%clk 0:00:00]} 90. Ke2 {[%clk 0:00:00]}  Ke4 {[%clk 0:00:00]} 91. Kd2 {[%clk 0:00:00]}  Kd5 {[%clk 0:00:00]} 92. Ke2 {[%clk 0:00:00]}  Ne7 {[%clk 0:00:00]} 93. Kf3 {[%clk 0:00:00]}  Nc6 {[%clk 0:00:00]} 94. Bc5 {[%clk 0:00:00]}  Nxa5 {[%clk 0:00:00]} 95. Ke2 {[%clk 0:00:00]}  Nc6 {[%clk 0:00:00]} 96. Kd2 {[%clk 0:00:00]}  a5 {[%clk 0:00:00]} 0-1


[Site "https://www.chess.com"]

[Event "Titled Tuesday Blitz August 16 Early 2022"]
[White "Bachmann, Axel"]
[Black "Martinez Reyes, Pedro Ramon"]
[WhiteFideId "3700488"]
[BlackFideId "3901807"]
[WhiteElo "2595"]
[BlackElo "2327"]
[Result "1-0"]
[Round "02"]
[TimeControl "180+2"]
[Date "2022.08.18"]
[WhiteClock "0:00:00"]
[BlackClock "0:00:00"]

1. d4 {[%clk 0:00:00]}  d5 {[%clk 0:00:00]} 2. c4 {[%clk 0:00:00]}  dxc4 {[%clk 0:00:00]} 3. e3 {[%clk 0:00:00]}  Nf6 {[%clk 0:00:00]} 4. Bxc4 {[%clk 0:00:00]}  e6 {[%clk 0:00:00]} 5. Nf3 {[%clk 0:00:00]}  c5 {[%clk 0:00:00]} 6. O-O {[%clk 0:00:00]}  Nc6 {[%clk 0:00:00]} 7. dxc5 {[%clk 0:00:00]}  Qxd1 {[%clk 0:00:00]} 8. Rxd1 {[%clk 0:00:00]}  Bxc5 {[%clk 0:00:00]} 9. a3 {[%clk 0:00:00]}  O-O {[%clk 0:00:00]} 10. b4 {[%clk 0:00:00]}  Be7 {[%clk 0:00:00]} 11. Bb2 {[%clk 0:00:00]}  b6 {[%clk 0:00:00]} 12. Nc3 {[%clk 0:00:00]}  Bb7 {[%clk 0:00:00]} 13. Nb5 {[%clk 0:00:00]}  Rfd8 {[%clk 0:00:00]} 14. Rac1 {[%clk 0:00:00]}  Rac8 {[%clk 0:00:00]} 15. Rxd8+ {[%clk 0:00:00]}  Rxd8 {[%clk 0:00:00]} 16. Kf1 {[%clk 0:00:00]}  Ne4 {[%clk 0:00:00]} 17. Be2 {[%clk 0:00:00]}  Nd6 {[%clk 0:00:00]} 18. h3 {[%clk 0:00:00]}  Kf8 {[%clk 0:00:00]} 19. Ne5 {[%clk 0:00:00]}  Nxe5 {[%clk 0:00:00]} 20. Bxe5 {[%clk 0:00:00]}  Nxb5 {[%clk 0:00:00]} 21. Bxb5 {[%clk 0:00:00]}  a6 {[%clk 0:00:00]} 22. Rc7 {[%clk 0:00:00]}  Bxg2+ {[%clk 0:00:00]} 23. Kxg2 {[%clk 0:00:00]}  axb5 {[%clk 0:00:00]} 24. Rb7 {[%clk 0:00:00]}  f6 {[%clk 0:00:00]} 25. Bd4 {[%clk 0:00:00]}  Ra8 {[%clk 0:00:00]} 26. Rxb6 {[%clk 0:00:00]}  Rxa3 {[%clk 0:00:00]} 27. Rxb5 {[%clk 0:00:00]}  Rb3 {[%clk 0:00:00]} 28. Rb8+ {[%clk 0:00:00]}  Kf7 {[%clk 0:00:00]} 29. Rb7 {[%clk 0:00:00]}  Ke8 {[%clk 0:00:00]} 30. b5 {[%clk 0:00:00]}  e5 {[%clk 0:00:00]} 31. Ba7 {[%clk 0:00:00]}  f5 {[%clk 0:00:00]} 32. b6 {[%clk 0:00:00]}  e4 {[%clk 0:00:00]} 33. Rc7 {[%clk 0:00:00]}  Bf6 {[%clk 0:00:00]} 34. b7 {[%clk 0:00:00]}  Be5 {[%clk 0:00:00]} 35. b8=Q+ {[%clk 0:00:00]}  Rxb8 {[%clk 0:00:00]} 36. Rc5 {[%clk 0:00:00]} 1-0


[Site "https://www.chess.com"]